bitfinex-derivatives/quotes_BTCF0:USTF0_20240905
["timestamp","ask_amount","ask_price","bid_price","bid_amount"]
[1725523001786,0.1779217,57200.0,57199.0,0.450218]
[1725523002494,0.28672674,57200.0,57199.0,0.450218]
[1725523002681,0.37414274,57200.0,57199.0,0.450218]
[1725523004098,0.37414728,57200.0,57199.0,0.450218]
[1725523004778,0.37414728,57200.0,57199.0,0.089418]
[1725523007290,0.28673128,57200.0,57199.0,0.089418]
[1725523007567,0.22402624,57200.0,57199.0,0.089418]
[1725523008398,0.17792624,57200.0,57199.0,0.089418]
[1725523014289,0.17792392,57200.0,57199.0,0.089418]
[1725523016293,0.06792392,57200.0,57199.0,0.089418]
[1725523018491,0.06792392,57200.0,57199.0,0.176836]
[1725523019297,0.06792178,57200.0,57199.0,0.176836]
[1725523020202,0.17792178,57200.0,57199.0,0.176836]
[1725523020600,0.17792178,57200.0,57199.0,0.089418]
[1725523020800,0.17792178,57200.0,57199.0,0.189418]
[1725523022805,0.17792474,57200.0,57199.0,0.189418]
[1725523023404,0.17792474,57200.0,57199.0,0.21296979]
[1725523028055,0.1779254,57200.0,57199.0,0.21296979]
[1725523029107,0.1779254,57200.0,57199.0,0.11296979]
[1725523029297,0.1779254,57200.0,57199.0,0.02555179]
[1725523029298,0.2653414,57200.0,57199.0,0.02555179]
[1725523029503,0.32804644,57200.0,57199.0,0.02555179]
[1725523030211,0.32804644,57200.0,57199.0,0.11296979]
[1725523031256,0.32804644,57200.0,57199.0,0.02555179]
[1725523031410,0.95252644,57200.0,57199.0,0.02555179]
[1725523031707,0.51546244,57200.0,57199.0,0.02555179]
[1725523035020,1.76154244,57200.0,57199.0,0.02555179]
[1725523036705,1.76155184,57200.0,57199.0,0.02555179]
[1725523036910,1.67413584,57200.0,57195.0,0.087424]
[1725523037113,0.087427,57193.0,57192.0,0.00026207]
[1725523037412,0.71189973,57193.0,57192.0,0.00026207]
[1725523037612,0.77460477,57193.0,57192.0,0.00026207]
[1725523037809,0.77660477,57193.0,57192.0,0.02428404]
[1725523038015,0.77460477,57193.0,57192.0,0.02428404]
[1725523038816,0.77460477,57193.0,57192.0,0.11171304]
[1725523040025,0.78460477,57193.0,57192.0,0.11271304]
[1725523041327,0.79260477,57193.0,57192.0,0.11371304]
[1725523042416,0.43180477,57193.0,57192.0,0.11371304]
[1725523042624,0.79260477,57193.0,57192.0,0.11371304]
[1725523043823,0.43180477,57193.0,57192.0,0.11371304]
[1725523044022,0.79260477,57193.0,57192.0,0.11371304]
[1725523044519,0.43180477,57193.0,57192.0,0.11371304]
[1725523044731,0.79260477,57193.0,57192.0,0.11371304]
[1725523047720,0.43180477,57193.0,57192.0,0.11371304]
[1725523049029,0.43180477,57193.0,57192.0,0.02628404]
[1725523052029,0.51923177,57193.0,57192.0,0.02628404]
[1725523052366,0.60665877,57193.0,57192.0,0.00226207]
[1725523053425,0.6066617,57193.0,57192.0,0.00226207]
[1725523054039,0.9674617,57193.0,57192.0,0.00226207]
[1725523058433,0.96746169,57193.0,57192.0,0.00226207]
[1725523066844,0.60666169,57193.0,57192.0,0.00226207]
[1725523067047,0.96746169,57193.0,57192.0,0.00226207]
[1725523071740,0.60518069,57193.0,57192.0,0.00226207]
[1725523072049,0.60518069,57193.0,57192.0,0.18969107]
[1725523072253,0.60518069,57193.0,57192.0,0.28379107]
[1725523072254,0.24438069,57193.0,57192.0,0.28379107]
[1725523072447,0.18167565,57193.0,57192.0,0.28379107]
[1725523073247,0.18167565,57193.0,57192.0,0.18379107]
[1725523075054,0.18166817,57193.0,57192.0,0.18379107]
[1725523078663,0.18167109,57193.0,57192.0,0.18379107]
[1725523080750,0.26909809,57193.0,57192.0,0.08969107]
[1725523080947,0.33180313,57193.0,57192.0,0.08969107]
[1725523082052,0.27813204,57193.0,57192.0,0.08969107]
[1725523082250,0.33180494,57193.0,57192.0,0.08969107]
[1725523089771,0.69260494,57193.0,57192.0,0.08969107]
[1725523090656,0.33180494,57193.0,57192.0,0.08969107]
[1725523096067,0.34437794,57193.0,57192.0,0.08969107]
[1725523097963,0.2816729,57193.0,57192.0,0.08969107]
[1725523098159,0.2816729,57193.0,57192.0,0.45049107]
[1725523099667,0.2816729,57193.0,57192.0,0.08969107]
[1725523102269,0.2816729,57193.0,57192.0,0.18969107]
[1725523102473,0.1816729,57193.0,57192.0,0.18969107]
[1725523104871,0.1816729,57193.0,57192.0,0.08969107]
[1725523106871,0.2816729,57193.0,57192.0,0.08969107]
[1725523107374,0.228,57193.0,57192.0,0.08969107]
[1725523107576,0.28167154,57193.0,57192.0,0.08969107]
[1725523109167,0.18167154,57193.0,57192.0,0.18969107]
[1725523109977,0.0457,57197.0,57192.0,0.18969107]
[1725523109978,0.0717509,57203.0,57195.0,0.087424]
[1725523110213,0.11026207,57200.0,57199.0,0.4628]
[1725523110373,0.05392447,57200.0,57199.0,0.4628]
[1725523111181,0.06392447,57200.0,57199.0,0.4628]
[1725523111673,0.06392447,57200.0,57199.0,0.4638]
[1725523111875,0.06392447,57200.0,57199.0,0.552218]
[1725523112476,0.06392343,57200.0,57199.0,0.552218]
[1725523113476,0.13392343,57200.0,57199.0,0.552218]
[1725523113984,0.06392343,57200.0,57199.0,0.552218]
[1725523116177,0.06392343,57200.0,57199.0,0.58078474]
[1725523117382,0.06392241,57200.0,57199.0,0.58078474]
[1725523120389,0.06392241,57200.0,57199.0,0.48078474]
[1725523120586,0.06392241,57200.0,57199.0,0.58078474]
[1725523121903,0.18392241,57200.0,57199.0,0.58078474]
[1725523122606,0.18392369,57200.0,57199.0,0.58078474]
[1725523122999,0.18392369,57200.0,57199.0,0.21998474]
[1725523138888,0.18392369,57200.0,57199.0,0.58078474]
[1725523145717,0.18392369,57200.0,57199.0,0.48078474]
[1725523145916,0.18392369,57200.0,57199.0,0.58078474]
[1725523148409,0.18392369,57200.0,57199.0,0.21998474]
[1725523151416,0.18392479,57200.0,57199.0,0.21998474]
[1725523151611,0.18392479,57200.0,57199.0,0.11998474]
[1725523151818,0.18392479,57200.0,57199.0,0.21998474]
[1725523153015,0.18392479,57200.0,57199.0,0.11998474]
[1725523153217,0.28392479,57200.0,57199.0,0.03256674]
[1725523154020,0.37134079,57200.0,57199.0,0.03256674]
[1725523154215,0.43404568,57200.0,57199.0,0.03256674]
[1725523156234,0.79484568,57200.0,57199.0,0.004]
[1725523156435,1.91932568,57200.0,57199.0,0.004]
[1725523157030,1.91933495,57200.0,57199.0,0.004]
[1725523157528,1.31933495,57200.0,57199.0,0.004]
[1725523158623,0.95853495,57200.0,57199.0,0.004]
[1725523158831,1.31933495,57200.0,57199.0,0.004]
[1725523160731,0.79485495,57200.0,57199.0,0.004]
[1725523161324,0.79485508,57200.0,57199.0,0.004]
[1725523164731,0.74118296,57200.0,57199.0,0.004]
[1725523164933,0.79485579,57200.0,57199.0,0.004]
[1725523166135,0.43405579,57200.0,57199.0,0.004]
[1725523166334,1.39485579,57200.0,57199.0,0.004]
[1725523166533,0.79485579,57200.0,57199.0,0.004]
[1725523167727,1.91933579,57200.0,57199.0,0.004]
[1725523167929,1.9740203,57200.0,57199.0,0.004]
[1725523168240,0.8495403,57200.0,57199.0,0.004]
[1725523169533,0.79485579,57200.0,57199.0,0.004]
[1725523174834,0.70743979,57200.0,57199.0,0.004]
[1725523175338,0.70743979,57200.0,57199.0,0.091418]
[1725523176633,0.7074346,57200.0,57199.0,0.091418]
[1725523181237,0.7074346,57200.0,57199.0,0.004]
[1725523181439,0.7948506,57200.0,57199.0,0.004]
[1725523185647,0.4340506,57200.0,57199.0,0.004]
[1725523185849,0.7948506,57200.0,57199.0,0.004]
[1725523186642,0.4340506,57200.0,57199.0,0.004]
[1725523186948,0.79485482,57200.0,57199.0,0.004]
[1725523188451,0.69485482,57200.0,57199.0,0.004]
[1725523188648,0.79485482,57200.0,57199.0,0.004]
[1725523193149,0.43405482,57200.0,57199.0,0.004]
[1725523193343,0.79485482,57200.0,57199.0,0.004]
[1725523196147,0.43405482,57200.0,57199.0,0.004]
[1725523196362,0.79485482,57200.0,57199.0,0.004]
[1725523196849,0.79485484,57200.0,57199.0,0.004]
[1725523198229,0.43405484,57200.0,57199.0,0.004]
[1725523198354,0.79485484,57200.0,57199.0,0.004]
[1725523199248,0.88227084,57200.0,57199.0,0.004]
[1725523200069,0.81956595,57200.0,57199.0,0.004]
[1725523200259,0.66589407,57200.0,57199.0,0.004]
[1725523200950,1.19037407,57200.0,57199.0,0.004]
[1725523201219,0.66589407,57200.0,57199.0,0.004]
[1725523203349,1.26589407,57200.0,57199.0,0.004]
[1725523203945,0.72058298,57200.0,57199.0,0.004]
[1725523205354,0.66589407,57200.0,57199.0,0.004]
[1725523208863,0.54589407,57200.0,57199.0,0.004]
[1725523210148,0.90669407,57200.0,57199.0,0.004]
[1725523212559,2.03117407,57200.0,57199.0,0.004]
[1725523213060,2.03117407,57200.0,57192.0,0.00026207]
[1725523213061,0.087427,57193.0,57192.0,0.00026207]
[1725523213264,0.450227,57193.0,57192.0,0.00026207]
[1725523215381,0.451227,57193.0,57192.0,0.00126207]
[1725523215558,0.453227,57193.0,57192.0,0.00226207]
[1725523222063,0.540654,57193.0,57192.0,0.00226207]
[1725523226168,0.453227,57193.0,57192.0,0.00226207]
[1725523231679,0.3658,57193.0,57192.0,0.00226207]
[1725523233679,0.005,57193.0,57192.0,0.00226207]
[1725523233976,0.3658,57193.0,57192.0,0.00226207]
[1725523236562,0.005,57193.0,57192.0,0.00226207]
[1725523236884,0.3658,57193.0,57192.0,0.00226207]
[1725523237376,0.005,57193.0,57192.0,0.00226207]
[1725523237677,0.3658,57193.0,57192.0,0.00226207]
[1725523240390,0.453227,57193.0,57192.0,0.00226207]
[1725523247182,0.092427,57193.0,57192.0,0.00226207]
[1725523247383,0.453227,57193.0,57192.0,0.00226207]
[1725523249778,0.540654,57193.0,57192.0,0.00226207]
[1725523256086,0.453227,57193.0,57192.0,0.00226207]
[1725523259293,0.453227,57193.0,57192.0,0.10226207]
[1725523260446,0.453227,57193.0,57192.0,0.00226207]
[1725523262901,0.453227,57193.0,57192.0,0.10226207]
[1725523263609,0.453227,57193.0,57192.0,1.31425107]
[1725523263610,0.3658,57193.0,57192.0,1.31425107]
[1725523264115,0.3658,57193.0,57192.0,1.72751241]
[1725523264116,0.005,57193.0,57192.0,1.72751241]
[1725523264591,0.005,57193.0,57192.0,1.31425107]
[1725523264785,0.005,57193.0,57192.0,1.21425107]
[1725523264987,0.005,57193.0,57192.0,1.31425107]
[1725523265596,0.005,57193.0,57192.0,0.71425107]
[1725523267587,0.005,57193.0,57192.0,0.18969107]
[1725523271997,0.005,57193.0,57192.0,0.08969107]
[1725523272201,0.092427,57193.0,57192.0,0.08969107]
[1725523273201,0.192427,57193.0,57192.0,0.08969107]
[1725523275101,0.192427,57193.0,57192.0,0.00226207]
[1725523277399,0.553227,57193.0,57192.0,0.00226207]
[1725523278098,0.640654,57193.0,57192.0,0.00226207]
[1725523278304,0.728081,57193.0,57192.0,0.00226207]
[1725523280796,1.088881,57193.0,57192.0,0.00226207]
[1725523283507,1.613441,57193.0,57192.0,0.00226207]
[1725523284105,1.66813344,57193.0,57192.0,0.00226207]
[1725523285010,0.94653344,57193.0,57192.0,0.00226207]
[1725523285309,1.66813344,57193.0,57192.0,0.00226207]
[1725523286503,0.94653344,57193.0,57192.0,0.00226207]
[1725523286708,1.66813344,57193.0,57192.0,0.00226207]
[1725523287011,1.613441,57193.0,57192.0,0.00226207]
[1725523287711,1.088881,57193.0,57192.0,0.00226207]
[1725523290609,0.262299,57189.0,57188.0,0.006]
[1725523290915,0.364299,57189.0,57188.0,0.006]
[1725523292617,0.366299,57189.0,57188.0,0.007]
[1725523293118,0.366299,57189.0,57188.0,0.008]
[1725523293119,0.369299,57189.0,57188.0,0.008]
[1725523294216,1.090899,57189.0,57188.0,0.008]
[1725523297317,1.11979966,57189.0,57188.0,0.008]
[1725523299816,0.262305,57188.0,57187.0,0.02840198]
[1725523300024,0.087441,57184.0,57183.0,0.00017478]
[1725523300206,0.452241,57184.0,57183.0,0.00017478]
[1725523300411,0.3608,57184.0,57183.0,0.61225678]
[1725523300611,0.3608,57184.0,57183.0,1.24099603]
[1725523300811,0.004,57188.0,57187.0,0.087436]
[1725523301017,0.007,57188.0,57187.0,1.213036]
[1725523301407,0.007,57188.0,57187.0,1.313036]
[1725523301813,0.094435,57188.0,57187.0,1.313036]
[1725523302925,0.3608,57190.0,57189.0,0.087433]
[1725523303221,0.2859,57190.0,57189.0,0.687433]
[1725523303422,0.2859,57190.0,57189.0,1.211993]
[1725523304407,0.2899,57190.0,57189.0,1.212993]
[1725523305607,0.2939,57190.0,57189.0,1.213993]
[1725523305920,0.00082,57190.0,57189.0,1.213993]
[1725523306110,0.05468628,57202.0,57199.0,0.087418]
[1725523306422,0.05468628,57202.0,57199.0,0.187418]
[1725523307212,0.448212,57203.0,57199.0,0.187418]
[1725523307419,0.448212,57203.0,57199.0,0.189418]
[1725523307618,0.448212,57203.0,57199.0,0.190418]
[1725523308930,0.3608,57203.0,57199.0,0.190418]
[1725523309120,0.3608,57203.0,57199.0,0.191418]
[1725523309516,0.3608,57203.0,57199.0,0.715898]
[1725523311627,0.3608,57203.0,57199.0,0.191418]
[1725523311832,0.3608,57203.0,57199.0,0.2202501]
[1725523312323,0.3608,57203.0,57199.0,0.7447301]
[1725523312724,0.3608,57203.0,57199.0,0.2202501]
[1725523316726,0.448212,57203.0,57199.0,0.2202501]
[1725523317635,0.448212,57203.0,57199.0,1.3447301]
[1725523318879,0.087413,57202.0,57199.0,1.3447301]
[1725523320926,0.08767807,57200.0,57199.0,1.2447301]
[1725523321129,0.08767807,57200.0,57199.0,0.2202501]
[1725523321626,0.54847807,57200.0,57199.0,0.0328321]
[1725523321825,0.63589407,57200.0,57199.0,0.0328321]
[1725523322226,0.44847807,57200.0,57199.0,0.0328321]
[1725523330029,0.44847807,57200.0,57199.0,0.1202501]
[1725523331129,0.08767807,57200.0,57199.0,0.1202501]
[1725523336130,0.00026207,57200.0,57199.0,0.1202501]
[1725523336639,0.00026207,57200.0,57199.0,1.0055301]
[1725523338635,0.00026207,57200.0,57199.0,0.4810501]
[1725523339742,0.0487,57207.0,57199.0,1.5181121]
[1725523339947,0.10377444,57213.0,57206.0,0.4628]
[1725523340136,0.10377444,57213.0,57212.0,0.089398]
[1725523340335,0.10377444,57213.0,57212.0,0.087398]
[1725523341141,0.0491,57213.0,57212.0,0.087398]
[1725523341443,0.0468,57214.0,57212.0,0.087398]
[1725523341444,0.087393,57216.0,57212.0,0.001]
[1725523341635,0.087393,57216.0,57213.0,0.1]
[1725523341838,0.087393,57216.0,57215.0,0.002]
[1725523342951,0.087393,57216.0,57215.0,0.089394]
[1725523344250,0.087393,57216.0,57215.0,0.090394]
[1725523344636,0.0002623,57218.0,57217.0,0.08739]
[1725523344851,0.0002623,57218.0,57217.0,0.55019]
[1725523345054,0.0002623,57218.0,57217.0,1.07451]
[1725523345345,0.0002623,57218.0,57217.0,1.67451]
[1725523345530,0.0797223,57220.0,57219.0,0.087387]
[1725523345737,0.0797223,57220.0,57219.0,0.09792496]
[1725523346039,0.0797223,57220.0,57219.0,1.22220496]
[1725523347338,0.0797223,57220.0,57219.0,1.22420496]
[1725523347534,0.0459,57230.0,57219.0,1.052187]
[1725523347535,0.08752,57230.0,57219.0,1.052187]
[1725523347740,0.08752,57230.0,57229.0,0.550172]
[1725523347936,0.08752,57230.0,57229.0,0.2509053]
[1725523348140,0.0459,57237.0,57236.0,0.087361]
[1725523348346,0.02,57240.0,57236.0,0.6008]
[1725523348542,0.10752,57240.0,57239.0,0.242]
[1725523348746,0.10752,57240.0,57239.0,0.569357]
[1725523348941,0.10752,57240.0,57239.0,1.693477]
[1725523349839,0.00026207,57244.0,57239.0,1.60612]
[1725523350041,0.00026207,57244.0,57243.0,0.331351]
[1725523350464,0.00026207,57244.0,57243.0,1.455431]
[1725523351653,0.08752,57245.0,57244.0,0.087349]
[1725523351853,0.08752,57245.0,57244.0,0.615429]
[1725523352055,0.07952,57252.0,57251.0,0.087339]
[1725523352241,0.07952,57252.0,57251.0,1.216139]
[1725523352545,0.07952,57252.0,57251.0,1.816139]
[1725523352748,0.07952,57252.0,57251.0,1.216139]
[1725523353142,0.07952,57252.0,57251.0,1.816139]
[1725523353343,0.07952,57252.0,57251.0,1.216139]
[1725523353538,0.07952,57252.0,57251.0,0.692139]
[1725523354249,0.07952,57252.0,57251.0,0.693139]
[1725523354439,0.07952,57252.0,57251.0,0.694139]
[1725523355649,0.07952,57252.0,57251.0,0.6068]
[1725523356455,0.166857,57252.0,57251.0,0.6068]
[1725523356759,0.212357,57252.0,57251.0,0.63523122]
[1725523357247,0.573157,57252.0,57251.0,0.27443122]
[1725523359348,0.900494,57252.0,57251.0,0.006]
[1725523359544,0.07152,57250.0,57246.0,0.00026207]
[1725523359744,0.6463,57252.0,57246.0,0.00026207]
[1725523359745,0.84701,57247.0,57246.0,0.00026207]
[1725523360051,0.087357,57239.0,57238.0,0.24]
[1725523360250,0.688145,57247.0,57235.0,0.24]
[1725523360251,0.087361,57236.0,57235.0,0.24]
[1725523360445,0.0457,57238.0,57235.0,0.327362]
[1725523360741,0.0457,57238.0,57234.0,0.37076889]
[1725523360742,0.133058,57238.0,57237.0,0.244]
[1725523361045,0.220416,57238.0,57237.0,0.244]
[1725523361251,0.220416,57238.0,57237.0,0.004]
[1725523361951,0.221416,57238.0,57237.0,0.005]
[1725523362852,0.174722,57236.0,57235.0,0.001]
[1725523363656,0.087363,57235.0,57234.0,0.24]
[1725523363952,0.133763,57235.0,57234.0,0.24]
[1725523365546,0.135763,57235.0,57234.0,0.241]
[1725523366054,0.181563,57235.0,57234.0,0.241]
[1725523366453,0.181563,57235.0,57234.0,0.242]
[1725523367959,0.542363,57235.0,57234.0,0.242]
[1725523370753,0.455,57235.0,57234.0,0.329365]
[1725523371061,0.002,57235.0,57234.0,0.329365]
[1725523372754,0.002,57235.0,57234.0,1.54089]
[1725523373053,0.00026207,57243.0,57242.0,0.087352]
[1725523373252,0.00026207,57243.0,57242.0,0.331352]
[1725523374464,0.00026207,57243.0,57242.0,0.332352]
[1725523374763,0.00226207,57243.0,57242.0,0.333352]
[1725523375577,0.00226207,57243.0,57242.0,1.457432]
[1725523375959,0.00226207,57243.0,57242.0,1.217432]
[1725523376163,0.00226207,57243.0,57242.0,0.617432]
[1725523376363,0.00226207,57243.0,57242.0,1.217432]
[1725523377660,0.00226207,57243.0,57242.0,0.617432]
[1725523378257,0.00226207,57243.0,57242.0,0.64676858]
[1725523380066,0.00226207,57243.0,57242.0,1.24676858]
[1725523380869,0.00226207,57243.0,57242.0,0.12268858]
[1725523383967,0.008,57245.0,57244.0,0.174698]
[1725523384159,0.008,57245.0,57244.0,0.940778]
[1725523384360,0.008,57245.0,57244.0,1.540778]
[1725523384563,0.008,57245.0,57244.0,1.638978]
[1725523385278,0.008,57245.0,57244.0,1.639978]
[1725523385969,0.008,57245.0,57244.0,1.552629]
[1725523386463,0.008,57245.0,57244.0,0.953629]
[1725523386672,0.008,57245.0,57244.0,1.553629]
[1725523386969,0.008,57245.0,57244.0,0.331349]
[1725523399072,0.00026207,57250.0,57249.0,0.087342]
[1725523399270,0.00026207,57250.0,57249.0,0.539484]
[1725523400880,0.24579482,57257.0,57252.0,0.24]
[1725523401077,0.24579482,57257.0,57256.0,0.244]
[1725523401276,0.24579482,57257.0,57256.0,0.25271653]
[1725523402274,0.60659482,57257.0,57256.0,0.25271653]
[1725523402777,0.3608,57257.0,57256.0,0.25271653]
[1725523403683,0.3608,57257.0,57256.0,0.25371653]
[1725523404178,0.3608,57257.0,57256.0,0.25471653]
[1725523406188,0.3608,57257.0,57256.0,0.28285083]
[1725523407279,0.00026158,57262.0,57256.0,0.64365083]
[1725523407483,0.00026158,57262.0,57261.0,0.244]
[1725523409292,0.08752,57263.0,57261.0,0.6048]
[1725523409477,0.08752,57269.0,57262.0,0.52792]
[1725523409674,0.08752,57269.0,57268.0,0.244]
[1725523409874,0.08752,57269.0,57268.0,0.24]
[1725523411183,0.08752,57269.0,57268.0,0.241]
[1725523411490,0.08752,57269.0,57268.0,0.242]
[1725523412883,0.08752,57269.0,57268.0,0.329313]
[1725523413388,0.08752,57269.0,57268.0,0.242]
[1725523413580,0.174831,57269.0,57268.0,0.242]
[1725523413776,0.262142,57269.0,57268.0,0.002]
[1725523414176,0.262142,57269.0,57268.0,0.03084827]
[1725523414391,0.262142,57269.0,57268.0,0.002]
[1725523414595,0.262142,57269.0,57268.0,0.242]
[1725523415892,0.622942,57269.0,57268.0,0.242]
[1725523417185,0.622942,57269.0,57268.0,0.241]
[1725523417501,0.622942,57269.0,57268.0,0.242]
[1725523417696,0.622942,57269.0,57268.0,0.002]
[1725523417886,0.262152,57266.0,57265.0,0.02856089]
[1725523418194,0.17484,57263.0,57262.0,0.244]
[1725523419487,0.17484,57263.0,57262.0,0.2720801]
[1725523419987,0.17484,57263.0,57262.0,0.2730801]
[1725523420892,0.17484,57263.0,57262.0,0.2740801]
[1725523421487,0.26216,57263.0,57262.0,0.0340801]
[1725523421895,1.10216,57263.0,57262.0,0.006]
[1725523422091,1.10216,57263.0,57256.0,0.00026207]
[1725523422092,0.087329,57257.0,57256.0,0.00026207]
[1725523422293,0.448129,57257.0,57256.0,0.02879698]
[1725523422608,1.017189,57257.0,57256.0,0.02879698]
[1725523423384,1.104518,57257.0,57256.0,0.00026207]
[1725523423582,0.087343,57248.0,57247.0,0.24]
[1725523424789,0.087343,57248.0,57247.0,0.241]
[1725523425095,0.00026207,57253.0,57247.0,0.242]
[1725523425291,0.0458,57252.0,57247.0,0.002]
[1725523425482,0.13234,57251.0,57249.0,0.087341]
[1725523425688,0.045,57251.0,57249.0,0.087341]
[1725523426587,0.087343,57248.0,57247.0,0.002]
[1725523426791,0.087343,57248.0,57247.0,0.242]
[1725523427100,0.087343,57248.0,57247.0,0.241]
[1725523427997,0.087343,57248.0,57247.0,0.242]
[1725523433591,0.174686,57248.0,57247.0,0.242]
[1725523434800,0.174686,57248.0,57247.0,0.002]
[1725523436194,1.746869,57248.0,57247.0,0.002]
[1725523436490,1.059526,57248.0,57247.0,0.002]
[1725523436686,0.448143,57248.0,57247.0,0.242]
[1725523438687,0.535486,57248.0,57247.0,0.002]
[1725523438887,1.059526,57248.0,57247.0,0.002]
[1725523439890,1.659526,57248.0,57247.0,0.002]
[1725523443306,1.059526,57248.0,57247.0,0.002]
[1725523443505,0.448143,57248.0,57247.0,0.329345]
[1725523443797,0.448143,57248.0,57247.0,0.242]
[1725523443998,0.448143,57248.0,57247.0,0.329345]
[1725523445792,0.087338,57252.0,57251.0,0.087337]
[1725523445999,0.36106207,57253.0,57252.0,0.087337]
[1725523446302,0.36106207,57253.0,57252.0,0.089337]
[1725523446608,0.36106207,57253.0,57252.0,0.087337]
[1725523447403,0.36106207,57253.0,57252.0,0.088337]
[1725523449005,0.36106207,57253.0,57252.0,0.089337]
[1725523449505,0.36106207,57253.0,57252.0,0.11836739]
[1725523452610,0.00026207,57253.0,57252.0,0.11836739]
[1725523462303,0.08759807,57253.0,57252.0,0.03103039]
[1725523468117,0.08759807,57253.0,57252.0,0.13103039]
[1725523471407,0.08759807,57253.0,57252.0,0.21836739]
[1725523473525,0.00026207,57253.0,57252.0,0.21836739]
[1725523476809,0.00026207,57253.0,57252.0,0.11836739]
[1725523477016,0.00026207,57253.0,57252.0,0.21836739]
[1725523485125,0.00026207,57253.0,57252.0,0.27082873]
[1725523485537,0.00026207,57253.0,57252.0,0.35816573]
[1725523486117,0.00026207,57253.0,57252.0,0.30570439]
[1725523487020,0.00026207,57253.0,57252.0,0.35100439]
[1725523488122,0.08752,57260.0,57259.0,0.087326]
[1725523488325,0.05462412,57272.0,57271.0,0.087308]
[1725523488523,0.3608,57275.0,57271.0,0.004]
[1725523488833,0.0492,57274.0,57273.0,0.1]
[1725523489128,0.0492,57274.0,57268.0,0.08757407]
[1725523489327,0.0492,57274.0,57269.0,0.1]
[1725523489527,0.087311,57269.0,57268.0,0.00026207]
[1725523489830,0.187311,57269.0,57268.0,0.00026207]
[1725523490026,1.406451,57269.0,57268.0,0.02886354]
[1725523491528,1.406451,57269.0,57268.0,0.02986354]
[1725523491729,1.493762,57269.0,57268.0,0.00226207]
[1725523491924,1.633762,57269.0,57268.0,0.00226207]
[1725523492429,0.087325,57260.0,57259.0,0.002]
[1725523492728,0.448125,57260.0,57259.0,0.002]
[1725523493424,1.212045,57260.0,57259.0,0.002]
[1725523493629,1.812045,57260.0,57259.0,0.002]
[1725523493824,1.812045,57260.0,57259.0,0.003]
[1725523494134,1.813045,57260.0,57259.0,0.004]
[1725523494662,1.90037,57260.0,57259.0,0.004]
[1725523495928,1.90037,57260.0,57254.0,0.00026207]
[1725523495929,0.087332,57255.0,57254.0,0.00026207]
[1725523496230,0.448132,57255.0,57254.0,0.00026207]
[1725523496634,0.448132,57255.0,57254.0,0.02946435]
[1725523497130,0.449132,57255.0,57254.0,0.03046435]
[1725523497525,0.450132,57255.0,57254.0,0.03146435]
[1725523498129,0.450132,57255.0,57254.0,0.27146435]
[1725523500552,0.690132,57255.0,57254.0,0.03146435]
[1725523501040,0.450132,57255.0,57254.0,0.03146435]
[1725523503643,0.452132,57255.0,57254.0,0.03146435]
[1725523507849,0.452132,57255.0,57254.0,0.11879835]
[1725523509057,0.452132,57255.0,57254.0,0.03146435]
[1725523512650,0.3648,57255.0,57254.0,0.11879835]
[1725523512946,0.3648,57255.0,57254.0,0.21179835]
[1725523514455,0.3648,57255.0,57254.0,0.11879835]
[1725523514753,0.452132,57255.0,57254.0,0.11879835]
[1725523521156,0.452132,57255.0,57254.0,0.35879835]
[1725523525952,0.452132,57255.0,57254.0,0.21879835]
[1725523537950,0.3648,57255.0,57254.0,0.21879835]
[1725523542472,0.3648,57255.0,57254.0,0.11879835]
[1725523543168,0.539464,57255.0,57254.0,0.03146435]
[1725523543353,0.976092,57255.0,57254.0,0.03146435]
[1725523543553,0.452132,57255.0,57254.0,0.03146435]
[1725523545971,0.3648,57255.0,57254.0,0.11879835]
[1725523551573,0.3648,57255.0,57254.0,0.20613235]
[1725523553265,0.3608,57258.0,57257.0,0.174658]
[1725523553469,0.3608,57258.0,57257.0,0.28561672]
[1725523554679,0.3618,57258.0,57257.0,0.28661672]
[1725523555472,0.3628,57258.0,57257.0,0.28761672]
[1725523556676,0.3628,57258.0,57257.0,0.20028772]
[1725523562182,0.3628,57258.0,57257.0,0.091329]
[1725523562373,0.450128,57258.0,57257.0,0.191329]
[1725523564479,0.3628,57258.0,57257.0,0.191329]
[1725523568584,0.002,57260.0,57259.0,0.087326]
[1725523568783,0.002,57260.0,57259.0,0.174652]
[1725523569282,0.002,57260.0,57259.0,0.176652]
[1725523571177,0.002,57260.0,57259.0,0.177652]
[1725523571581,0.002,57260.0,57259.0,0.178652]
[1725523574113,0.002,57260.0,57259.0,0.091326]
[1725523584017,0.002,57260.0,57259.0,0.004]
[1725523584018,0.70057,57260.0,57259.0,0.004]
[1725523584184,0.174664,57255.0,57254.0,0.02946435]
[1725523584396,0.637464,57255.0,57254.0,0.02946435]
[1725523585289,0.637464,57255.0,57254.0,0.00126207]
[1725523585898,0.637464,57255.0,57254.0,0.00226207]
[1725523592506,0.450132,57255.0,57254.0,0.10226207]
[1725523593009,0.497432,57255.0,57254.0,0.00226207]
[1725523593898,0.497432,57255.0,57254.0,0.10226207]
[1725523598809,0.4101,57255.0,57254.0,0.18959607]
[1725523599003,0.3628,57255.0,57254.0,0.18959607]
[1725523600311,0.002,57255.0,57254.0,0.18959607]
[1725523602014,0.002,57255.0,57254.0,0.08959607]
[1725523602319,0.002,57255.0,57254.0,0.18959607]
[1725523602612,0.089332,57255.0,57254.0,0.18959607]
[1725523606916,0.002,57255.0,57254.0,0.18959607]
[1725523625221,0.002,57255.0,57254.0,0.27693007]
[1725523626525,0.002,57255.0,57254.0,0.36426407]
[1725523626843,0.002,57260.0,57259.0,0.087326]
[1725523627129,0.002,57260.0,57259.0,0.19786441]
[1725523628261,0.002,57260.0,57259.0,0.19886441]
[1725523628996,0.002,57260.0,57259.0,0.090326]
[1725523629167,0.089325,57260.0,57259.0,0.003]
[1725523629261,0.090325,57260.0,57259.0,0.004]
[1725523629920,0.17765,57260.0,57259.0,0.004]
[1725523631432,0.17765,57260.0,57259.0,0.03284363]